fUST/lending_fUST_20251113
["ID","MTS","AMOUNT","RATE_DAILY","PERIOD"]
[393757021,1762966246310,-34913.78895575,0.00023886,2]
[393757050,1762966246571,-866.40222584,0.00023886,2]
[393758064,1762967406927,431.73071,0.00013699,2]
[393758106,1762967432030,-431.73071,0.00020187,2]
[393758108,1762967432041,-300.0,0.00022223,2]
[393758110,1762967432051,-1200.0,0.00022223,2]
[393758112,1762967432061,-150.0,0.00022224,2]
[393758114,1762967432074,-1200.0,0.00022224,2]
[393758116,1762967432083,-300.0,0.00022224,2]
[393758118,1762967432093,-300.0,0.00022224,2]
[393758119,1762967432102,-300.0,0.00022224,2]
[393758121,1762967432111,-5000.0,0.00022225,2]
[393758123,1762967432120,-5000.0,0.00022225,2]
[393758125,1762967432129,-239.6550943,0.00022501,2]
[393758126,1762967432138,-373.0119977,0.0002276,2]
[393758128,1762967432147,-468.1198949,0.00023362,2]
[393758130,1762967432159,-390.07478728,0.00023362,2]
[393758132,1762967432170,-2648.40891523,0.00023362,2]
[393758134,1762967432179,-1648.71565228,0.00023476,2]
[393758136,1762967432189,-400.18833243,0.00023669,2]
[393758152,1762967432295,-3506.60359741,0.00023791,2]
[393758155,1762967432306,-1648.71565229,0.00023829,2]
[393758157,1762967432320,-500.0,0.00023869,2]
[393758159,1762967432329,-500.0,0.00023869,2]
[393758160,1762967432339,-500.0,0.00023869,2]
[393758162,1762967432349,-500.0,0.00023869,2]
[393758163,1762967432359,-500.0,0.00023869,2]
[393758164,1762967432368,-349.02585578,0.00023869,2]
[393758165,1762967432378,-500.0,0.00023869,2]
[393758166,1762967432387,-500.0,0.00023869,2]
[393758167,1762967432397,-500.0,0.00023869,2]
[393758168,1762967432406,-500.0,0.00023869,2]
[393758169,1762967432416,-500.0,0.00023869,2]
[393758170,1762967432425,-500.0,0.00023869,2]
[393758171,1762967432434,-500.0,0.00023869,2]
[393758172,1762967432444,-500.0,0.00023869,2]
[393758173,1762967432453,-500.0,0.00023869,2]
[393758174,1762967432462,-500.0,0.00023869,2]
[393758175,1762967432471,-500.0,0.00023869,2]
[393758176,1762967432480,-500.0,0.00023869,2]
[393758177,1762967432489,-500.0,0.00023869,2]
[393758178,1762967432498,-500.0,0.00023869,2]
[393758179,1762967432506,-500.0,0.00023869,2]
[393758180,1762967432515,-500.0,0.00023869,2]
[393758181,1762967432524,-500.0,0.00023869,2]
[393758182,1762967432533,-186.24895663,0.00023869,2]
[393758183,1762967432543,-500.0,0.00023869,2]
[393758184,1762967432553,-500.0,0.00023869,2]
[393758185,1762967432563,-500.0,0.00023869,2]
[393758186,1762967432576,-500.0,0.00023869,2]
[393758187,1762967432587,-500.0,0.00023869,2]
[393758189,1762967432605,-500.0,0.00023869,2]
[393758191,1762967432615,-500.0,0.00023869,2]
[393758192,1762967432625,-500.0,0.00023869,2]
[393758194,1762967432635,-421.50095848,0.00023869,2]
[393758196,1762967432645,-500.0,0.00023869,2]
[393758198,1762967432654,-500.0,0.00023869,2]
[393758200,1762967432664,-500.0,0.00023869,2]
[393758202,1762967432674,-500.0,0.00023869,2]
[393758205,1762967432684,-500.0,0.00023869,2]
[393758207,1762967432693,-500.0,0.00023869,2]
[393758209,1762967432702,-318.67204821,0.00023869,2]
[393758211,1762967432712,-500.0,0.00023869,2]
[393758213,1762967432721,-500.0,0.00023869,2]
[393758215,1762967432731,-500.0,0.00023869,2]
[393758217,1762967432740,-500.0,0.00023869,2]
[393758219,1762967432750,-500.0,0.00023869,2]
[393758221,1762967432760,-500.0,0.00023869,2]
[393758222,1762967432771,-500.0,0.00023869,2]
[393758224,1762967432782,-500.0,0.00023869,2]
[393758226,1762967432791,-500.0,0.00023869,2]
[393758229,1762967432801,-500.0,0.00023869,2]
[393758231,1762967432812,-219.59469199,0.00023869,2]
[393758233,1762967432824,-500.0,0.00023869,2]
[393758235,1762967432834,-500.0,0.00023869,2]
[393758237,1762967432844,-500.0,0.00023869,2]
[393758239,1762967432854,-500.0,0.00023869,2]
[393758241,1762967432863,-500.0,0.00023869,2]
[393758242,1762967432872,-500.0,0.00023869,2]
[393758244,1762967432882,-500.0,0.00023869,2]
[393758246,1762967432892,-500.0,0.00023869,2]
[393758249,1762967432901,-500.0,0.00023869,2]
[393758251,1762967432911,-500.0,0.00023869,2]
[393758252,1762967432920,-500.0,0.00023869,2]
[393758254,1762967432930,-500.0,0.00023869,2]
[393758257,1762967432940,-500.0,0.00023869,2]
[393758258,1762967432950,-500.0,0.00023869,2]
[393758260,1762967432959,-500.0,0.00023869,2]
[393758262,1762967432968,-500.0,0.00023869,2]
[393758264,1762967432978,-500.0,0.00023869,2]
[393758266,1762967432987,-500.0,0.00023869,2]
[393758268,1762967432996,-500.0,0.00023869,2]
[393758271,1762967433006,-500.0,0.00023869,2]
[393758273,1762967433019,-500.0,0.00023869,2]
[393758275,1762967433028,-500.0,0.00023869,2]
[393758276,1762967433038,-500.0,0.00023869,2]
[393758279,1762967433048,-500.0,0.00023869,2]
[393758281,1762967433058,-500.0,0.00023869,2]
[393758283,1762967433073,-500.0,0.00023869,2]
[393758284,1762967433083,-500.0,0.00023869,2]
[393758287,1762967433093,-500.0,0.00023869,2]
[393758289,1762967433104,-500.0,0.00023869,2]
[393758291,1762967433114,-500.0,0.00023869,2]
[393758293,1762967433124,-500.0,0.00023869,2]
[393758294,1762967433134,-500.0,0.00023869,2]
[393758296,1762967433144,-500.0,0.00023869,2]
[393758299,1762967433155,-500.0,0.00023869,2]
[393758301,1762967433165,-607.92165974,0.00023869,2]
[393758303,1762967433175,-500.0,0.00023869,2]
[393758305,1762967433185,-500.0,0.00023869,2]
[393758307,1762967433195,-500.0,0.00023869,2]
[393758308,1762967433205,-500.0,0.00023869,2]
[393758310,1762967433215,-500.0,0.00023869,2]
[393758312,1762967433224,-500.0,0.00023869,2]
[393758314,1762967433234,-500.0,0.00023869,2]
[393758316,1762967433243,-500.0,0.00023869,2]
[393758318,1762967433253,-500.0,0.00023869,2]
[393758320,1762967433262,-500.0,0.00023869,2]
[393758322,1762967433272,-500.0,0.00023869,2]
[393758324,1762967433281,-500.0,0.00023869,2]
[393758326,1762967433290,-500.0,0.00023869,2]
[393758328,1762967433299,-500.0,0.00023869,2]
[393758330,1762967433308,-500.0,0.00023869,2]
[393758332,1762967433321,-500.0,0.00023869,2]
[393758334,1762967433330,-500.0,0.00023869,2]
[393758336,1762967433340,-650.0,0.00023869,2]
[393758338,1762967433350,-500.0,0.00023869,2]
[393758340,1762967433359,-151.0,0.00023871,2]
[393758342,1762967433368,-152.70386212,0.00023871,2]
[393758344,1762967433378,-151.0,0.00023871,2]
[393758346,1762967433388,-154.76472584,0.00023871,2]
[393758348,1762967433398,-2281.0,0.00023872,2]
[393758350,1762967433407,-500.0,0.00023872,2]
[393758352,1762967433416,-503.89883739,0.00023873,2]
[393758354,1762967433426,-500.0,0.00023873,2]
[393758356,1762967433436,-505.79762792,0.00023873,2]
[393758358,1762967433446,-500.0,0.00023873,2]
[393758360,1762967433455,-500.0,0.00023873,2]
[393758362,1762967433465,-426.07856633,0.00023873,2]
[393758364,1762967433475,-500.0,0.00023873,2]
[393758366,1762967433484,-500.0,0.00023873,2]
[393758368,1762967433494,-500.0,0.00023873,2]
[393758370,1762967433503,-532.67088865,0.00023873,2]
[393758372,1762967433513,-500.0,0.00023873,2]
[393758374,1762967433523,-500.0,0.00023873,2]
[393758376,1762967433533,-500.0,0.00023873,2]
[393758378,1762967433542,-500.0,0.00023873,2]
[393758380,1762967433552,-500.0,0.00023873,2]
[393758382,1762967433563,-152.81628823,0.00023874,2]
[393758384,1762967433575,-152.56470532,0.00023874,2]
[393758386,1762967433585,-195.18,0.00023874,2]
[393758388,1762967433596,-1041.32,0.00023876,3]
[393758390,1762967433606,-520.66,0.00023876,3]
[393758392,1762967433616,-260.33,0.00023876,3]
[393758394,1762967433625,-500.0,0.00023881,2]
[393758396,1762967433635,-500.0,0.00023881,2]
[393758398,1762967433646,-190.0,0.00023882,2]
[393758400,1762967433655,-500.0,0.00023882,2]
[393758402,1762967433665,-500.0,0.00023884,2]
[393758404,1762967433674,-500.0,0.00023885,2]
[393758406,1762967433690,-500.0,0.00023885,2]
[393758408,1762967433700,-500.0,0.00023885,2]
[393758410,1762967433709,-500.0,0.00023885,2]
[393758412,1762967433719,-500.0,0.00023885,2]
[393758414,1762967433728,-500.0,0.00023885,2]
[393758416,1762967433738,-500.0,0.00023885,2]
[393758418,1762967433747,-500.0,0.00023885,2]
[393758420,1762967433757,-604.49155994,0.00023885,2]
[393758422,1762967433772,-1000.0,0.00023886,2]
[393758424,1762967433781,-1000.0,0.00023886,2]
[393758426,1762967433790,-1004.54098877,0.00023886,2]
[393758428,1762967433800,-1001.27111152,0.00023886,2]
[393758430,1762967433810,-320.31,0.000239,14]
[393758432,1762967433821,-165.05,0.000239,14]
[393758434,1762967433830,-151.0,0.00023926,2]
[393758436,1762967433839,-500.0,0.00023937,2]
[393758438,1762967433849,-500.0,0.00023992,2]
[393758440,1762967433859,-165.06,0.00024,14]
[393758442,1762967433868,-179.0,0.00024046,2]
[393758451,1762967433877,-420.0,0.00024143,2]
[393758453,1762967433956,-796.0,0.00024145,2]
[393758456,1762967433965,-420.0,0.00024145,2]
[393758457,1762967433974,-420.0,0.00024145,2]
[393758459,1762967433984,-420.0,0.00024145,2]
[393758461,1762967433993,-177.0,0.00024224,2]
[393758463,1762967434002,-1680.0,0.00024256,2]
[393758466,1762967434011,-160.0,0.00024357,2]
[393758468,1762967434021,-161.950258,0.00024402,2]
[393758469,1762967434030,-500.0,0.0002442,2]
[393758471,1762967434039,-1000.0,0.00024421,2]
[393758474,1762967434049,-500.0,0.00024421,2]
[393758475,1762967434058,-610.29127044,0.00024421,2]
[393758478,1762967434069,-287.9448943,0.00024421,2]
[393758479,1762967434078,-2283.53540283,0.00024812,2]
[393758481,1762967434087,-500.0,0.00024873,2]
[393758484,1762967434096,-500.0,0.00024873,2]
[393758486,1762967434106,-500.0,0.00024873,2]
[393758488,1762967434115,-438.78397004,0.00024873,2]
[393758489,1762967434124,-500.0,0.00024873,2]
[393758492,1762967434133,-781.0,0.0002489,3]
[393758493,1762967434142,-500.0,0.00024899,2]
[393758495,1762967434152,-500.0,0.00024899,2]
[393758497,1762967434161,-500.0,0.00024899,2]
[393758499,1762967434170,-38261.5976422,0.000249,2]
[393758501,1762967434179,-260.0,0.00024905,2]
[393758503,1762967434188,-164.708599,0.00024912,2]
[393758505,1762967434198,-164.708599,0.00024925,2]
[393758508,1762967434207,-164.708599,0.00024937,2]
[393758509,1762967434216,-164.708599,0.0002495,2]
[393758511,1762967434225,-38261.5976422,0.00025135,2]
[393758513,1762967434234,-1518.62314187,0.00025145,2]
[393758516,1762967434246,-2699.77447444,0.00025145,2]
[393758517,1762967434255,-1642.68272172,0.00025145,2]
[393758520,1762967434265,-2920.32483861,0.00025145,2]
[393758522,1762967434274,-4563.00756033,0.00025145,2]
[393758524,1762967434283,-6570.73088688,0.00025145,2]
[393758526,1762967434292,-480.56536573,0.00025145,2]
[393758528,1762967434302,-576.29415026,0.00025173,2]
[393758530,1762967434311,-501.53688474,0.00025173,2]
[393758532,1762967434323,-500.0,0.00025173,2]
[393758534,1762967434333,-500.0,0.00025173,2]
[393758536,1762967434342,-500.0,0.00025173,2]
[393758538,1762967434352,-1313.22,0.000252,7]
[393758540,1762967434362,-2082.64,0.00025246,3]
[393758542,1762967434372,-1041.32,0.00025246,3]
[393758544,1762967434382,-520.66,0.00025246,3]
[393758546,1762967434391,-273.61444308,0.00025273,2]
[393758548,1762967434401,-1000.0,0.00025421,2]
[393758550,1762967434410,-1000.0,0.00025421,2]
[393758552,1762967434420,-971.04808746,0.00025421,2]
[393758554,1762967434430,-1000.0,0.00025421,2]
[393758556,1762967434439,-520.0,0.00025453,2]
[393758558,1762967434449,-152.70232327,0.00025557,7]
[393758560,1762967434458,-499.75434709,0.00025721,2]
[393758562,1762967434467,-1000.0,0.00025721,2]
[393758563,1762967434477,-500.0,0.00025775,2]
[393758565,1762967434486,-500.0,0.00025775,2]
[393758567,1762967434495,-263.8119752,0.00025871,2]
[393758569,1762967434505,-1500.0,0.00025968,2]
[393758571,1762967434514,-1298.51530536,0.00025968,2]
[393758573,1762967434523,-1500.0,0.00025968,2]
[393758575,1762967434533,-406.25640549,0.00026039,7]
[393758577,1762967434544,-150.0,0.00026039,7]
[393758579,1762967434554,-204.0,0.00026224,2]
[393758581,1762967434566,-180.0,0.0002623,2]
[393758583,1762967434576,-206.0,0.00026232,2]
[393758585,1762967434587,-274.0,0.00026232,2]
[393758587,1762967434597,-582.0,0.00026232,2]
[393758589,1762967434606,-370.9437848,0.00026268,2]
[393758591,1762967434616,-150.0,0.0002628,2]
[393758593,1762967434625,-734.22771344,0.00026323,2]
[393758595,1762967434635,-299.54342765,0.00026323,2]
[393758597,1762967434644,-356.0,0.00026476,2]
[393758599,1762967434654,-518.00502542,0.00026516,2]
[393758601,1762967434664,-2000.0,0.00026516,2]
[393758603,1762967434674,-223.77083656,0.00026543,2]
[393758605,1762967434683,-431.73071,0.00026676,2]
[393758606,1762967434693,-166.73,0.000267,7]
[393758608,1762967434702,-250.0,0.00026828,2]
[393758610,1762967434712,-1390.41018056,0.00027064,2]
[393758612,1762967434721,-600.0,0.00027101,30]
[393758614,1762967434730,-350.0,0.00027376,2]
[393758616,1762967434739,-500.0,0.00027397,2]
[393758617,1762967434748,-500.0,0.00027397,15]
[393758619,1762967434757,-500.0,0.00027452,2]
[393758621,1762967434769,-500.0,0.00027507,2]
[393758623,1762967434778,-500.0,0.00027561,2]
[393758624,1762967434791,-165.06,0.000276,14]
[393758625,1762967434803,-1313.22,0.000276,7]
[393758626,1762967434814,-500.0,0.00027616,2]
[393758627,1762967434826,-500.0,0.00027671,2]
[393758628,1762967434836,-593.09,0.00027671,15]
[393758629,1762967434846,-500.0,0.00027726,2]
[393758630,1762967434857,-500.0,0.00027781,2]
[393758631,1762967434867,-450.0,0.00027924,5]
[393758632,1762967434877,-527.72732283,0.00028,5]
[393758633,1762967434887,-6600.15064744,0.00028006,7]
[393758634,1762967434896,-2013.61979815,0.00028006,7]
[393758635,1762967434905,-205.63,0.0002806,2]
[393758636,1762967434915,-231.0,0.00028224,2]
[393758637,1762967434924,-551.85733769,0.00028472,5]
[393758638,1762967434934,-602.223932,0.0002864,31]
[393758639,1762967434943,-602.223932,0.0002864,31]
[393758640,1762967434953,-602.223932,0.0002864,31]
[393758641,1762967434962,-602.223932,0.0002864,31]
[393758642,1762967434972,-38261.5976422,0.0002864,2]
[393758643,1762967434982,-500.0,0.0002865,5]
[393758644,1762967434992,-500.0,0.0002865,4]
[393758645,1762967435002,-226.29378329,0.0002931,2]
[393758646,1762967435011,-720.0,0.00029811,30]
[393758647,1762967435021,-1065.7,0.0003,30]
[393758648,1762967435031,-1065.7,0.0003018,30]
[393758649,1762967435042,-258.0,0.00030224,2]
[393758650,1762967435052,-1065.7,0.0003036,30]
[393758651,1762967435062,-411.26,0.00030611,2]
[393758652,1762967435075,-165.06,0.000307,14]
[393758653,1762967435084,-168.0,0.00030762,2]
[393758654,1762967435094,-179.9460162,0.00030843,6]
[393758655,1762967435104,-168.0,0.00031141,2]
[393758656,1762967435113,-168.0,0.00031158,2]
[393758657,1762967435123,-1313.22,0.000312,7]
[393758658,1762967435132,-164.708599,0.00031221,7]
[393758659,1762967435142,-164.708599,0.00032081,7]
[393758660,1762967435151,-285.0,0.00032224,2]
[393758661,1762967435161,-150.0,0.00032247,2]
[393758662,1762967435171,-233.662,0.00032247,2]
[393758663,1762967435180,-2167.0,0.00032247,2]
[393758664,1762967435190,-987.0,0.00032247,2]
[393758665,1762967435199,-413.0,0.00032247,2]
[393758666,1762967435209,-168.0,0.00032503,2]
[393758667,1762967435218,-168.0,0.00032637,2]
[393758668,1762967435228,-374.822848,0.00032665,31]
[393758669,1762967435239,-374.822848,0.00032665,31]
[393758670,1762967435249,-374.822848,0.00032665,31]
[393758671,1762967435259,-374.822848,0.00032665,31]
[393758672,1762967435270,-533.125134,0.00032665,31]
[393758673,1762967435279,-533.125134,0.00032665,31]
[393758674,1762967435289,-533.125134,0.00032665,31]
[393758675,1762967435298,-533.125134,0.00032665,31]
[393758676,1762967435308,-623.442578,0.00032665,31]
[393758677,1762967435318,-623.442578,0.00032665,31]
[393758678,1762967435327,-623.442578,0.00032665,31]
[393758679,1762967435337,-623.442578,0.00032665,31]
[393758680,1762967435347,-626.235582,0.00032665,31]
[393758681,1762967435356,-626.235582,0.00032665,31]
[393758682,1762967435367,-626.235582,0.00032665,31]
[393758683,1762967435377,-626.235582,0.00032665,31]
[393758684,1762967435461,-461.665853,0.00032665,31]
[393758685,1762967435472,-461.665853,0.00032665,31]
[393758686,1762967435482,-461.665853,0.00032665,31]
[393758687,1762967435492,-792.906786,0.00032665,31]
[393758688,1762967435501,-461.665853,0.00032665,31]
[393758689,1762967435511,-792.906786,0.00032665,31]
[393758690,1762967435521,-792.906786,0.00032665,31]
[393758691,1762967435531,-792.906786,0.00032665,31]
[393758692,1762967435542,-455.301566,0.00032665,31]
[393758693,1762967435552,-455.301566,0.00032665,31]
[393758694,1762967435561,-455.301566,0.00032665,31]
[393758695,1762967435577,-455.301566,0.00032665,31]
[393758696,1762967435587,-150.0,0.00032673,5]
[393758697,1762967435596,-864.0,0.00032792,30]
[393758698,1762967435606,-168.0,0.00032846,2]
[393758699,1762967435616,-250.22433908,0.00032877,7]
[393758700,1762967435625,-5159.09065137,0.00032879,120]
[393758701,1762967435634,-182.22564381,0.000329,120]
[393758702,1762967435644,-163.08136691,0.000329,120]
[393758703,1762967435653,-160.0,0.000329,120]
[393758704,1762967435662,-164.708599,0.00032942,7]
[393758705,1762967435671,-168.0,0.00033046,2]
[393758706,1762967435681,-168.0,0.00033116,2]
[393758707,1762967435690,-199.0,0.0003315,14]
[393758708,1762967435699,-168.0,0.00033152,2]
[393758709,1762967435708,-616.89,0.00033162,2]
[393758710,1762967435717,-431.73071,0.00033165,2]
[393758711,1762967435727,-300.0,0.00033221,5]
[393758712,1762967435736,-226.29378329,0.00033334,56]
[393758713,1762967435745,-152.05,0.00033692,60]
[393758714,1762967435754,-199.0,0.00033698,15]
[393758715,1762967435767,-152.06,0.00033708,60]
[393758716,1762967435777,-450.0,0.00033768,5]
[393758717,1762967435786,-152.05,0.00033792,60]
[393758718,1762967435795,-152.06,0.00033808,60]
[393758719,1762967435806,-168.0,0.00033864,2]
[393758720,1762967435816,-152.05,0.00033892,60]
[393758721,1762967435828,-182.22564381,0.000339,120]
[393758722,1762967435838,-160.0,0.000339,120]
[393758723,1762967435847,-152.06,0.00033908,60]
[393758724,1762967435858,-152.05,0.00033992,60]
[393758725,1762967435868,-152.06,0.00034008,60]
[393758726,1762967435878,-152.09,0.00034092,60]
[393758727,1762967435888,-152.06,0.00034108,60]
[393758728,1762967435897,-1313.22,0.000342,14]
[393758729,1762967435907,-152.06,0.00034208,60]
[393758730,1762967435917,-312.0,0.00034224,120]
[393758731,1762967435927,-199.0,0.00034246,16]
[393758732,1762967435936,-38261.5976422,0.00034306,2]
[393758733,1762967435946,-152.06,0.00034308,60]
[393758734,1762967435956,-600.0,0.00034316,5]
[393758735,1762967435965,-152.06,0.00034408,60]
[393758736,1762967435975,-602.223932,0.00034457,31]
[393758737,1762967435986,-602.223932,0.00034457,31]
[393758738,1762967435995,-602.223932,0.00034457,31]
[393758739,1762967436004,-602.223932,0.00034457,31]
[393758740,1762967436014,-153.68189799,0.00034457,5]
[393758741,1762967436023,-152.06,0.00034508,60]
[393758742,1762967436032,-152.06,0.00034608,60]
[393758743,1762967436042,-152.06,0.00034708,60]
[393758744,1762967436052,-199.0,0.00034794,17]
[393758745,1762967436061,-152.06,0.00034808,60]
[393758746,1762967436072,-750.0,0.00034864,5]
[393758747,1762967436082,-182.22564381,0.000349,120]
[393758748,1762967436091,-152.06,0.00034908,60]
[393758749,1762967436101,-152.0,0.00035,120]
[393758750,1762967436110,-152.06,0.00035008,60]
[393758751,1762967436119,-999.0,0.00035068,120]
[393758752,1762967436129,-152.06,0.00035108,60]
[393758753,1762967436139,-152.06,0.00035208,60]
[393758754,1762967436149,-150.0,0.00035247,2]
[393758755,1762967436159,-413.0,0.00035247,2]
[393758756,1762967436168,-152.06,0.00035308,60]
[393758757,1762967436178,-199.0,0.00035342,18]
[393758758,1762967436187,-152.06,0.00035408,60]
[393758759,1762967436197,-702.52148721,0.00035412,5]
[393758760,1762967436206,-152.06,0.00035508,60]
[393758761,1762967436215,-152.06,0.00035608,60]
[393758762,1762967436225,-272.59936907,0.00035616,2]
[393758763,1762967436234,-152.06,0.00035708,60]
[393758764,1762967436243,-822.52,0.00035713,2]
[393758765,1762967436252,-152.06,0.00035808,60]
[393758766,1762967436262,-199.0,0.0003589,19]
[393758767,1762967436272,-152.06,0.00035908,60]
[393758768,1762967436282,-152.0,0.00036,120]
[393758769,1762967436291,-152.06,0.00036008,60]
[393758770,1762967436301,-1000.0,0.00036071,30]
[393758771,1762967436311,-152.06,0.00036108,60]
[393758772,1762967436321,-999.0,0.00036164,120]
[393758773,1762967436330,-152.22860999,0.00036208,60]
[393758774,1762967436340,-339.0,0.00036224,120]
[393758775,1762967436349,-2283.53540282,0.00036278,2]
[393758776,1762967436359,-304.11054455,0.00036293,11]
[393758777,1762967436369,-257.85567945,0.00036436,2]
[393758778,1762967436379,-199.0,0.00036438,20]
[393758779,1762967436389,-834.76,0.00036439,20]
[393758780,1762967436398,-3834.78554659,0.00036475,2]
[393758781,1762967436408,-4383.2381691,0.00036475,2]
[393758782,1762967436419,-152.0,0.000369,120]
[393758783,1762967436428,-199.0,0.00036986,21]
[393758784,1762967436438,-999.0,0.0003726,120]
[393758785,1762967436448,-226.29378329,0.00037358,110]
[393758786,1762967436458,-199.0,0.00037534,22]
[393758787,1762967436469,-152.0,0.000379,120]
[393758788,1762967436480,-786.7111033,0.00037991,30]
[393758789,1762967436491,-199.0,0.00038082,23]
[393758790,1762967436502,-366.0,0.00038224,120]
[393758791,1762967436511,-413.0,0.00038247,2]
[393758792,1762967436521,-1028.15,0.00038264,2]
[393758793,1762967436531,-1044.69,0.00038356,120]
[393758794,1762967436540,-250.0,0.00038518,2]
[393758795,1762967436550,-250.0,0.00038518,2]
[393758796,1762967436564,-250.0,0.00038518,2]
[393758797,1762967436578,-250.0,0.00038518,2]
[393758798,1762967436588,-250.0,0.00038518,2]
[393758799,1762967436598,-255.24875742,0.00038518,2]
[393758800,1762967436608,-199.0,0.0003863,24]
[393758801,1762967436619,-167.36136655,0.0003863,30]
[393758802,1762967436630,-152.0,0.000388,120]
[393758803,1762967436640,-593.1179572,0.00038813,30]
[393758804,1762967436649,-593.1179572,0.00038813,30]
[393758805,1762967436659,-593.1179572,0.00038813,30]
[393758806,1762967436668,-593.1179572,0.00038813,30]
[393758807,1762967436678,-593.1179572,0.00038813,30]
[393758808,1762967436687,-593.1179572,0.00038813,30]
[393758809,1762967436696,-593.1179572,0.00038813,30]
[393758810,1762967436706,-593.1179572,0.00038813,30]
[393758811,1762967436715,-593.1179572,0.00038813,30]
[393758812,1762967436725,-590.0377742,0.00038813,30]
[393758813,1762967436734,-1313.22,0.000389,14]
[393758814,1762967436744,-167.36136655,0.00039123,30]
[393758815,1762967436753,-199.0,0.00039178,25]
[393758816,1762967436763,-431.73071,0.00039654,2]
[393758817,1762967436773,-1000.0,0.00039678,90]
[393758818,1762967436785,-244.0,0.00039678,90]
[393758819,1762967436864,-199.0,0.00039726,26]
[393758820,1762967436874,-38261.5976422,0.0003979,3]
[393758821,1762967436884,-152.0,0.000398,120]
[393758822,1762967436894,-602.223932,0.000398,120]
[393758823,1762967436903,-602.223932,0.000398,120]
[393758824,1762967436913,-602.223932,0.000398,120]
[393758825,1762967436922,-602.223932,0.000398,120]
[393758826,1762967436931,-394.9872363,0.00039891,30]
[393758827,1762967436941,-394.9872363,0.00039891,30]
[393758828,1762967436950,-394.9872363,0.00039891,30]
[393758829,1762967436960,-394.9872363,0.00039891,30]
[393758830,1762967436969,-394.9872363,0.00039891,30]
[393758831,1762967436979,-200.0,0.0004,20]
[393758832,1762967436988,-164.708599,0.00040078,60]
[393758833,1762967436998,-300.2064069,0.00040192,30]
[393758834,1762967437008,-393.0,0.00040224,120]
[393758835,1762967437017,-199.0,0.00040273,27]
[393758836,1762967437028,-191.1498362,0.00040439,30]
[393758837,1762967437038,-164.1285603,0.00040439,30]
[393758838,1762967437048,-154.2174785,0.00040439,30]
[393758839,1762967437059,-322.4742664,0.00040439,30]
[393758840,1762967437072,-593.1179572,0.00040439,30]
[393758841,1762967437084,-191.1498362,0.00040439,30]
[393758842,1762967437094,-593.1179572,0.00040439,30]
[393758843,1762967437104,-164.1285603,0.00040439,30]
[393758844,1762967437113,-164.1285603,0.00040439,30]
[393758845,1762967437122,-191.1498362,0.00040439,30]
[393758846,1762967437130,-591.7188694,0.00040439,30]
[393758847,1762967437137,-191.1498362,0.00040439,30]
[393758848,1762967437146,-164.1285603,0.00040439,30]
[393758849,1762967437154,-164.1285603,0.00040439,30]
[393758850,1762967437163,-164.1285603,0.00040439,30]
[393758851,1762967437172,-191.1498362,0.00040439,30]
[393758852,1762967437182,-152.0,0.000407,120]
[393758853,1762967437191,-1233.78,0.00040815,2]
[393758854,1762967437201,-199.0,0.00040821,28]
[393758855,1762967437211,-394.9872363,0.0004085,30]
[393758856,1762967437220,-394.9872363,0.0004085,30]